Cogmind - Beta 14 @@@ ROGUE MODE // 2024.08.19 @ 16:36:09 Player: GlasMayne Result: Destroyed by H-66 Slayer with Gauss Rifle Performance ------------- Evolutions (5) 2500 Regions Visited (8) 1600 Robots Destroyed (70) 350 Value Destroyed (1879) 1879 Prototype IDs (5) 100 Alien Tech Used (0) 0 Bonus (606) 606 TOTAL SCORE: 7035 Bonus ------- High Alert Combat Kills 106 Entered DSFs 500 Cogmind --------- Core Integrity 0/1000 Matter 132/300 Energy 95/100 System Corruption 0% Temperature Cool (0) Movement Walking (120) Location -5/Upper Caves Parts ------- > --- POWER (1) -------- (None) > --- PROPULSION (6) --- Armored Leg Gravmag System VTOL Module > --- UTILITY (8) ------ Improved Sensor Array Improved Signal Interpreter Improved Target Analyzer > --- WEAPON (2) ------- Bore Cannon > --- INVENTORY (5) ---- Light Nuclear Core Improved Kinecellerator Tesla Rifle Beamcaster Cooled Plasma Rifle Peak State ------------ > --- POWER ------------ Light Nuclear Core > --- PROPULSION ------- Improved Carbon-fiber Leg Improved Carbon-fiber Leg Improved Carbon-fiber Leg Improved Carbon-fiber Leg Improved Titanium Leg > --- UTILITY ---------- Large Storage Unit Advanced Visual Processing Unit Advanced Terrain Scan Processor Armor Integrity Analyzer Weapon Cycler > --- WEAPON ----------- Gauss Cannon Gauss Cannon > --- INVENTORY -------- Improved Carbon-fiber Leg Improved Carbon-fiber Leg Improved Carbon-fiber Leg Improved Carbon-fiber Leg Large Storage Unit Weapon Cycler System Restoration Module High-powered Tractor Beam Ion Cannon Minigun Minigun Gauss Cannon Mini Grenade Launcher [Rating: 51] Favorites ----------- Power Light Ion Engine Engine Light Ion Engine Power Core Light Nuclear Core Propulsion Aluminum Leg Leg Aluminum Leg Hover Unit Gravmag System Flight Unit VTOL Module Utility Large Storage Unit Device Seismic Detector Storage Large Storage Unit Processor Terrain Scan Processor Protection Hardened Light Armor Plating Weapon Minigun Energy Gun Medium Laser Energy Cannon Beam Cannon Ballistic Gun Minigun Ballistic Cannon Gauss Cannon Launcher Mini Grenade Launcher Special Weapon Mining Laser Build | -11 -10 -9 -8 -7 -7 -6 -5 -5 ------- Run | Yrd Mat Mat Mat Fac DSF Fac Fac Upp Slots Evolved 10 | . . 2 2 2 . 2 2 . Power . | . . . . . . . . . Propulsion 4 | . . 1 1 1 . 1 . . Utility 6 | . . 1 1 1 . 1 2 . Weapon . | . . . . . . . . . Parts Attached 101 | 7 3 24 24 9 8 2 18 6 Power 11 | 1 1 3 4 . 1 . 1 . Engine 5 | 1 1 3 . . . . . . Core 6 | . . . 4 . 1 . 1 . Reactor . | . . . . . . . . . Propulsion 36 | 2 . 10 5 4 7 . 6 2 Treads . | . . . . . . . . . Leg 26 | 2 . 10 5 4 4 . . 1 Wheel . | . . . . . . . . . Hover 1 | . . . . . . . . 1 Flight 9 | . . . . . 3 . 6 . Utility 24 | 2 1 4 7 4 . 1 4 1 Device 14 | 1 . 3 6 . . 1 2 1 Storage 3 | 1 1 . . 1 . . . . Processor 6 | . . . 1 3 . . 2 . Hackware . | . . . . . . . . . Protection 1 | . . 1 . . . . . . Artifact . | . . . . . . . . . Weapon 30 | 2 1 7 8 1 . 1 7 3 Energy Gun 7 | . 1 1 . . . . 3 2 Energy Cannon 3 | . . 1 . . . . 2 . Ballistic Gun 13 | 2 . 4 5 . . 1 1 . Ballistic Cannon 5 | . . . 2 1 . . 1 1 Launcher 1 | . . . 1 . . . . . Special Weapon 1 | . . 1 . . . . . . Impact Weapon . | . . . . . . . . . Slashing Weapon . | . . . . . . . . . Piercing Weapon . | . . . . . . . . . Special Melee Weapon . | . . . . . . . . . Unidentified Prototypes 3 | . . . 1 . . . 2 . Parts Lost 47 | . 2 11 11 . 9 3 5 6 Power 8 | . 1 1 3 . 1 1 . 1 Propulsion 19 | . . 3 3 . 6 1 1 5 Utility 6 | . . 3 2 . . 1 . . Weapon 14 | . 1 4 3 . 2 . 4 . Highest Loss Streak 9 | . 1 9 6 . 9 2 4 5 To Critical Strikes 1 | . . . . . . . 1 . Average Slot Usage (%) 83 | . 99 93 96 96 85 23 20 57 Engine 6 | . 13 10 2 . . . . . Core 2 | . . . 5 7 5 6 1 4 Leg 25 | . 28 31 34 36 30 . . . Flight 2 | . . . . . 1 13 10 22 Device 12 | . 14 14 16 7 6 1 1 5 Storage 8 | . 14 11 9 7 6 . . . Processor 4 | . . . 9 22 21 . 1 11 Protection 1 | . . 3 . . . . . . Energy Gun 2 | . 3 3 . . . . 1 7 Ballistic Gun 12 | . 24 15 15 . . 2 . . Ballistic Cannon 1 | . . . 2 14 11 . . . Peak Build Rating 51 | 7 8 18 41 44 51 20 37 46 Average Rating 19 | 6 7 12 30 41 42 14 12 35 On Entrance 17 | . 7 8 18 21 44 12 6 37 Naked Turns 32 | . . . . . . . 32 . Heaviest Build 40 | 13 28 35 39 40 40 11 17 16 Greatest Support 92 | 20 20 30 80 78 92 12 24 24 Greatest Overweight (x) 7 | 1 1 7 1 . 1 1 5 1 Average Overweight (x) . | . . . . . . . . . Largest Inventory Capacity 15 | 8 15 15 15 15 15 5 5 5 Average Capacity 11 | 7 9 15 15 15 13 5 5 5 Most Carried 15 | 6 9 15 15 11 14 5 5 5 Average Carried 9 | 3 7 10 14 6 11 4 2 4 Final Capacity 15 | 8 15 15 15 15 5 5 5 5 Final Carried 15 | 6 9 15 12 8 5 5 5 5 Class Distribution -------------------- 58% | Mutant 35% | Scavenger-Mutant 6% | Scavenger-Sprinter Dominant Class ---------------- Mutant | -10/Materials Scavenger-Mutant | -9/Materials Mutant | -8/Materials Scavenger-Mutant | -7/Factory Mutant | -7/DSF Mutant | -6/Factory Mutant | -5/Factory Scavenger-Sprinter | -5/Upper Caves Resources | -11 -10 -9 -8 -7 -7 -6 -5 -5 ----------- Run | Yrd Mat Mat Mat Fac DSF Fac Fac Upp Matter Collected 2192 | 298 130 556 904 . 16 . 130 158 Remotely 432 | . . 282 150 . . . . . Salvage Created 2510 | 128 203 869 1214 . . . 96 . Parts 165 | 15 11 61 73 . . . 5 . Haulers Intercepted 4 | . 2 . 2 . . . . . Recyclers Shooed 5 | 1 1 . 3 . . . . . Parts Field Recycled 2 | . . . . . . . 2 . Retrieved Matter 34 | . . . . . . . 34 . Parts Self-Destructed . | . . . . . . . . . Prevented . | . . . . . . . . . Kills | -11 -10 -9 -8 -7 -7 -6 -5 -5 ------- Run | Yrd Mat Mat Mat Fac DSF Fac Fac Upp Combat Hostiles Destroyed 52 | . 3 23 22 . . . 4 . Guns 38 | . 3 19 14 . . . 2 . Cannons 14 | . . 4 8 . . . 2 . Classes Destroyed 10 | 1 3 2 4 . . . . . Worker 1 | . . . 1 . . . . . Builder 2 | . . . 2 . . . . . Tunneler 7 | 6 . . 1 . . . . . Hauler 4 | . 2 . 2 . . . . . Recycler 4 | . 1 1 2 . . . . . Swarmer 18 | . 3 8 3 . . . 4 . Grunt 22 | . . 11 11 . . . . . Brawler 1 | . . . 1 . . . . . Sentry 7 | . . 4 3 . . . . . Specialist 4 | . . . 4 . . . . . Best Kill Streak 9 | 2 3 5 9 . . . 2 . Combat Bots Only 6 | . 3 5 6 . . . 2 . Max Kills in Single Turn 2 | 1 1 1 2 . . . 1 . Gunslinging . | . . . . . . . . . Exploded . | . . . . . . . . . Melee . | . . . . . . . . . Uniques/NPCs Destroyed . | . . . . . . . . . Combat | -11 -10 -9 -8 -7 -7 -6 -5 -5 -------- Run | Yrd Mat Mat Mat Fac DSF Fac Fac Upp Hostile Shots Fired 619 | . 19 177 152 . 72 21 127 51 Missed 188 | . 4 42 49 . 22 7 45 19 Damage Taken 7429 | . 239 1639 1933 . 1448 358 1342 470 Core 2262 | . 21 343 198 . 489 203 853 155 Absorbed by Shields . | . . . . . . . . . Ignored by Resistances 12 | . . . . . . 12 . . Core Remaining (%) 62 | 100 91 14 64 . 30 76 . . Volleys Fired 225 | 11 18 79 102 . . . 11 4 Largest 2 | 2 2 2 2 . . . 2 1 Hottest 170 | 40 70 100 76 . . . 170 57 Shots Fired 428 | 22 36 151 201 . . . 14 4 Gun 345 | 22 36 123 157 . . . 7 . Cannon 81 | . . 26 44 . . . 7 4 Launcher . | . . . . . . . . . Special 2 | . . 2 . . . . . . Kinetic 358 | 22 31 100 201 . . . . 4 Thermal 69 | . 5 51 . . . . 13 . Explosive . | . . . . . . . . . Electromagnetic 1 | . . . . . . . 1 . Robot Hit Streak 12 | 3 3 12 10 . . . 6 . Robot Miss Streak 4 | 2 2 4 4 . . . 3 4 Penetration Max 1 | . . . 1 . . . . . Secondary Targets 5 | . 2 2 1 . . . . . Max Gunslinging Chain 1 | . 1 1 1 . . . . . Shots Hit Robots 265 | 11 20 99 126 . . . 9 . Core Hits 108 | 6 9 34 52 . . . 7 . Critical Kills 2 | . . . 2 . . . . . Critical Parts Destroyed . | . . . . . . . . . Critical Strikes 6 | . 1 1 4 . . . . . Burn 2 | . 1 1 . . . . . . Destroy 2 | . . . 2 . . . . . Blast 2 | . . . 2 . . . . . Melee Attacks . | . . . . . . . . . Impact . | . . . . . . . . . Slashing . | . . . . . . . . . Piercing . | . . . . . . . . . Sneak Attacks . | . . . . . . . . . Combat Hostiles . | . . . . . . . . . Follow-up Attacks . | . . . . . . . . . Damage Inflicted 5033 | 143 271 1589 2756 . . . 274 . Guns 3672 | 143 271 1278 1891 . . . 89 . Cannons 1312 | . . 275 863 . . . 174 . Explosions . | . . . . . . . . . Melee . | . . . . . . . . . Ramming 25 | . . 12 2 . . . 11 . Kinetic 4210 | 143 221 1092 2754 . . . . . Thermal 798 | . 50 485 . . . . 263 . Explosive . | . . . . . . . . . Electromagnetic . | . . . . . . . . . Impact . | . . . . . . . . . Slashing . | . . . . . . . . . Piercing . | . . . . . . . . . Highest Corruption . | . . . . . . . . . Average Corruption . | . . . . . . . . . Corruption Purged . | . . . . . . . . . Corruption Blocked . | . . . . . . . . . Overload Shots . | . . . . . . . . . Overflow Damage 5 | . . . 5 . . . . . Projectiles 5 | . . . 5 . . . . . Explosions . | . . . . . . . . . Melee . | . . . . . . . . . Knockbacks 5 | . . . 5 . . . . . Impact . | . . . . . . . . . Kinetic 4 | . . . 4 . . . . . Secondary 1 | . . . 1 . . . . . Self-Inflicted Damage 5 | . . . . . . . 5 . Shots . | . . . . . . . . . Rammed 3 | . . . . . . . 3 . Targets Rammed 5 | . . 1 1 . . . 3 . Kicked 2 | . . 1 1 . . . . . Crushed . | . . . . . . . . . Highest Temperature 321 | . 18 321 147 . . 5 223 45 Average Temperature 59 | . 9 101 37 . . 5 36 19 Received Heat Transfer 1590 | . 18 705 615 . 90 120 18 24 Effects 2 | . . 2 . . . . . . Energy Bleed 1 | . . 1 . . . . . . Damage (minor) 1 | . . 1 . . . . . . Siege Activations . | . . . . . . . . . Robots Corrupted . | . . . . . . . . . Combat Hostiles . | . . . . . . . . . Parts Fried . | . . . . . . . . . Impact Corruptions . | . . . . . . . . . Robots Melted . | . . . . . . . . . Combat Hostiles . | . . . . . . . . . Parts Melted 2 | . . 2 . . . . . . Heat Transferred 1930 | . 222 1247 . . . . 461 . Parts Sabotaged . | . . . . . . . . . Parts Stolen . | . . . . . . . . . Parts Stripped . | . . . . . . . . . Power Chain Reactions . | . . . . . . . . . Alert | -11 -10 -9 -8 -7 -7 -6 -5 -5 ------- Run | Yrd Mat Mat Mat Fac DSF Fac Fac Upp Peak Influence 508 | 30 67 399 508 191 148 75 137 . Initial 191 | . 19 27 145 191 133 30 36 . Average 182 | 9 33 257 286 191 124 49 62 . Maximum Alert Level 2 | . . 1 2 . . . . . Low Security (%) 53 | 100 100 9 36 100 100 100 100 . Level 1 39 | . . 90 38 . . . . . Level 2 6 | . . . 24 . . . . . Level 3 . | . . . . . . . . . Level 4 . | . . . . . . . . . Level 5 . | . . . . . . . . . High Security . | . . . . . . . . . Max Security . | . . . . . . . . . Squads Dispatched 9 | . 1 2 4 . 1 1 . . Investigation 1 | . . 1 . . . . . . Extermination . | . . . . . . . . . Reinforcement 8 | . 1 1 4 . 1 1 . . Assault . | . . . . . . . . . Garrison . | . . . . . . . . . Intercept . | . . . . . . . . . Searches Triggered . | . . . . . . . . . Construction Impeded . | . . . . . . . . . Haulers Reinforced . | . . . . . . . . . Active Scanning Responses . | . . . . . . . . . Cargo Convoy Interrupts . | . . . . . . . . . Stealth | -11 -10 -9 -8 -7 -7 -6 -5 -5 --------- Run | Yrd Mat Mat Mat Fac DSF Fac Fac Upp Distress Signals 5 | . . 2 2 . . . 1 . Communications Jammed . | . . . . . . . . . Distress Signals . | . . . . . . . . . Times Spotted 109 | . 6 35 39 . 5 8 13 3 Peak Tracking Total 10 | . 2 8 5 . 4 6 10 2 Tactical Retreats 11 | . . 3 3 . 1 2 1 1 Traps | -11 -10 -9 -8 -7 -7 -6 -5 -5 ------- Run | Yrd Mat Mat Mat Fac DSF Fac Fac Upp Traps Triggered 4 | . . . . . 1 . 3 . Indirectly . | . . . . . . . . . Trap Hack Attempts . | . . . . . . . . . Triggered . | . . . . . . . . . Disarmed . | . . . . . . . . . Reprogrammed . | . . . . . . . . . Reused . | . . . . . . . . . Traps Extracted . | . . . . . . . . . Installed . | . . . . . . . . . Triggered . | . . . . . . . . . Machines | -11 -10 -9 -8 -7 -7 -6 -5 -5 ---------- Run | Yrd Mat Mat Mat Fac DSF Fac Fac Upp Machines Disabled 3 | . . 1 2 . . . . . Max in Single Turn 2 | . . 1 2 . . . . . Machines Repaired . | . . . . . . . . . Machines Dismantled . | . . . . . . . . . Machines Sabotaged . | . . . . . . . . . Overloaded Fab Kills . | . . . . . . . . . Hacking | -11 -10 -9 -8 -7 -7 -6 -5 -5 --------- Run | Yrd Mat Mat Mat Fac DSF Fac Fac Upp Machines Accessed 14 | . 1 6 5 1 . . 1 . Terminals 10 | . 1 4 3 1 . . 1 . Fabricators . | . . . . . . . . . Repair Stations . | . . . . . . . . . Recycling Units 3 | . . 1 2 . . . . . Scanalyzers 1 | . . 1 . . . . . . Garrison Access . | . . . . . . . . . Total Hacks 31 | . 2 15 9 3 . . 2 . Successful 20 | . 2 10 6 1 . . 1 . Failed 11 | . . 5 3 2 . . 1 . Catastrophic . | . . . . . . . . . Database Lockouts . | . . . . . . . . . Manual . | . . . . . . . . . Terminals 21 | . 2 8 6 3 . . 2 . Fabricators . | . . . . . . . . . Repair Stations . | . . . . . . . . . Recycling Units 5 | . . 2 3 . . . . . Scanalyzers 5 | . . 5 . . . . . . Garrison Access . | . . . . . . . . . Terminal Hacks 12 | . 2 5 3 1 . . 1 . Record 2 | . 1 1 . . . . . . Prototype ID Bank 1 | . 1 . . . . . . . Open DSF 1 | . . . . 1 . . . . Branch Access Points 1 | . . . 1 . . . . . Emergency Access Points 1 | . . . . . . . 1 . Terminal Index 1 | . . 1 . . . . . . Locate Traps 1 | . . . 1 . . . . . Maintenance Status 1 | . . 1 . . . . . . Security Status 1 | . . 1 . . . . . . Recall Reinforcements 1 | . . 1 . . . . . . Hauler Manifests 1 | . . . 1 . . . . . Fabricator Hacks . | . . . . . . . . . Repair Station Hacks . | . . . . . . . . . Recycling Unit Hacks 4 | . . 1 3 . . . . . Report Inventory 3 | . . 1 2 . . . . . Retrieve Components 1 | . . . 1 . . . . . Scanalyzer 4 | . . 4 . . . . . . Insert Component 2 | . . 2 . . . . . . Analyze 2 | . . 2 . . . . . . Garrison Access Hacks . | . . . . . . . . . Unauthorized Hacks . | . . . . . . . . . Terminals . | . . . . . . . . . Fabricators . | . . . . . . . . . Repair Stations . | . . . . . . . . . Recycling Units . | . . . . . . . . . Scanalyzers . | . . . . . . . . . Garrison Access . | . . . . . . . . . Data Cores Recovered . | . . . . . . . . . Used . | . . . . . . . . . Hacking Detections 10 | . 1 5 2 1 . . 1 . Full Trace Events 1 | . . 1 . . . . . . Feedback Events . | . . . . . . . . . Feedback Blocked . | . . . . . . . . . Robot Schematics Acquired . | . . . . . . . . . Robots Built . | . . . . . . . . . Authchips . | . . . . . . . . . Time . | . . . . . . . . . Total Robot Build Rating . | . . . . . . . . . Part Schematics Acquired 2 | . . 2 . . . . . . Parts Built . | . . . . . . . . . Authchips . | . . . . . . . . . Time . | . . . . . . . . . Total Part Build Rating . | . . . . . . . . . Parts Repaired . | . . . . . . . . . Time . | . . . . . . . . . Parts Recycled . | . . . . . . . . . Recycled Matter . | . . . . . . . . . Retrieved Matter . | . . . . . . . . . Retrieved Components 1 | . . . 1 . . . . . Parts Scanalyzed 2 | . . 2 . . . . . . Part Schematics Acquired 2 | . . 2 . . . . . . Parts Damaged . | . . . . . . . . . Bothacking | -11 -10 -9 -8 -7 -7 -6 -5 -5 ------------ Run | Yrd Mat Mat Mat Fac DSF Fac Fac Upp Used RIF Installer . | . . . . . . . . . Robots Hacked . | . . . . . . . . . Non-combat . | . . . . . . . . . Combat . | . . . . . . . . . Robot Hacks Applied . | . . . . . . . . . Relay Couplers Released . | . . . . . . . . . Fabnet Peak Effective % . | . . . . . . . . . Robots Rewired . | . . . . . . . . . Allies Hacked . | . . . . . . . . . Hacks Repelled . | . . . . . . . . . Allies | -11 -10 -9 -8 -7 -7 -6 -5 -5 -------- Run | Yrd Mat Mat Mat Fac DSF Fac Fac Upp Total Allies . | . . . . . . . . . Largest Group . | . . . . . . . . . Highest-Rated Group . | . . . . . . . . . Highest-Rated Ally . | . . . . . . . . . Total Orders . | . . . . . . . . . Ally Attacks . | . . . . . . . . . Total Damage . | . . . . . . . . . Kills . | . . . . . . . . . Allies Corrupted . | . . . . . . . . . Allies Melted . | . . . . . . . . . Intel | -11 -10 -9 -8 -7 -7 -6 -5 -5 ------- Run | Yrd Mat Mat Mat Fac DSF Fac Fac Upp Robot Analysis Total . | . . . . . . . . . Derelict Logs Recovered 1 | . . . . . . . . 1 Drone Launches . | . . . . . . . . . Drone Recoveries . | . . . . . . . . . Exploration | -11 -10 -9 -8 -7 -7 -6 -5 -5 ------------- Run | Yrd Mat Mat Mat Fac DSF Fac Fac Upp Turns Passed 3843 | 251 539 1133 992 89 130 130 339 240 Spaces Moved 2798 | 167 273 498 511 64 101 310 396 478 Core 80 | 6 . 3 . . 1 . 70 . Treads . | . . . . . . . . . Legs 1611 | 161 273 495 511 64 79 . . 28 Wheels . | . . . . . . . . . Hover 52 | . . . . . . . . 52 Flight 1055 | . . . . . 21 310 326 398 Fastest Speed 20 | 50 120 120 120 122 37 37 20 20 Average Speed 98 | 120 130 173 125 122 103 38 57 35 Slowest Speed 400 | 190 190 400 200 122 190 120 300 120 Overloaded Moves . | . . . . . . . . . Propulsion Burnouts . | . . . . . . . . . Robots Hopped . | . . . . . . . . . Cave-ins Triggered . | . . . . . . . . . Exploration Rate (%) 31 | 7 34 44 41 2 81 8 11 56 Regions Visited 8 Branch Regions 1 Pre-discovered Areas . | . . . . . . . . . Known Exits Taken 2 | . . . . 1 . . 1 . Unknown Exits Taken 5 | 1 1 1 1 . . 1 . . Scrap Searched 3 | . . . . . . . . 3 Spaces Dug . | . . . . . . . . . Terrain Destroyed 26 | . . . 22 . . . 1 3 Melee . | . . . . . . . . . Projectile 23 | . . . 19 . . . 1 3 AOE 3 | . . . 3 . . . . . Terrain Rammed . | . . . . . . . . . Walls Destroyed . | . . . . . . . . . Machines Disabled . | . . . . . . . . . Actions | -11 -10 -9 -8 -7 -7 -6 -5 -5 --------- Run | Yrd Mat Mat Mat Fac DSF Fac Fac Upp Total 3493 | 190 422 619 711 73 122 323 487 546 Wait 240 | . 118 3 36 . 6 . 26 51 Move 2790 | 166 272 497 510 63 100 309 395 478 Hop . | . . . . . . . . . Pick Up 59 | 6 7 7 18 1 5 6 8 1 Fast Attach 39 | 7 1 9 2 1 4 1 11 3 Attach 29 | . 1 5 8 6 . 1 7 1 Detach 6 | . . 1 . . . . 2 3 Swap 33 | . 1 10 14 2 4 . . 2 Drop 46 | . 4 7 20 . 3 6 3 3 Fire 225 | 11 18 79 102 . . . 11 4 Melee . | . . . . . . . . . Ram 3 | . . . . . . . 3 . Kick 2 | . . 1 1 . . . . . Crush . | . . . . . . . . . Escape Stasis 21 | . . . . . . . 21 . Rewire . | . . . . . . . . . Trap . | . . . . . . . . . Miscellaneous . | . . . . . . . . . Route ------- -11/Scrapyard -10/Materials -9/Materials (discovered 2 exits: *Mat / [*Min]) -8/Materials -7/Factory -7/DSF -6/Factory -5/Factory -5/Upper Caves History --------- Turn | Location | Event 5 | -11/Scrapyard | Discovered new exit (range 16) 252 | -11/Scrapyard | Entered Materials 310 | -10/Materials | Build established: Mutant 746 | -10/Materials | Discovered new exit (range 15) 791 | -10/Materials | Entered another Materials area 791 | -9/Materials | Evolved 2 slots: Propulsion x1, Utility x1 1275 | -9/Materials | Core integrity fell below 50% 1308 | -9/Materials | Lost 9 parts (1p3n2u3w) 1376 | -9/Materials | Discovered new exit (range 8) 1498 | -9/Materials | Core integrity fell below 20% 1594 | -9/Materials | Build established: Scavenger-Mutant 1806 | -9/Materials | Discovered new exit (range 8) 1924 | -9/Materials | Entered another Materials area 1924 | -8/Materials | Evolved 2 slots: Propulsion x1, Utility x1 2719 | -8/Materials | Build established: Mutant 2736 | -8/Materials | Discovered new exit (range 16) 2835 | -8/Materials | Lost 3 parts (1p1u1w) 2913 | -8/Materials | Lost 6 parts (1p3n2w) 2916 | -8/Materials | Entered Factory 2916 | -7/Factory | Evolved 2 slots: Propulsion x1, Utility x1 3004 | -7/Factory | Identified exit to DSF 3005 | -7/Factory | Entered DSF 3034 | -7/DSF | Discovered new exit (range 20) 3055 | -7/DSF | Additional patrols routed to DSF 3121 | -7/DSF | Core integrity fell below 50% 3121 | -7/DSF | Released all parts (5) 3135 | -7/DSF | Entered Factory 3135 | -6/Factory | Evolved 2 slots: Propulsion x1, Utility x1 3155 | -6/Factory | Lost 9 parts (1p6n2w) 3255 | -6/Factory | Discovered new exit (range 16) 3265 | -6/Factory | Entered another Factory area 3265 | -5/Factory | Evolved 2 slots: Utility x2 3474 | -5/Factory | Core integrity fell below 50% 3486 | -5/Factory | Lost 4 parts (1n3w) 3500 | -5/Factory | Core integrity fell below 20% 3596 | -5/Factory | Discovered new exit (range 8) 3599 | -5/Factory | Identified exit to Upper Caves 3604 | -5/Factory | Entered Upper Caves 3638 | -5/Upper Caves | Attracted the attention of an 0b10 checkpoint 3718 | -5/Upper Caves | Learned Factory terminal intel 3726 | -5/Upper Caves | Spotted B-75 Beast 3804 | -5/Upper Caves | Lost 5 parts (5n) 3844 | -5/Upper Caves | Destroyed by H-66 Slayer with Gauss Rifle Last Messages --------------- 03800_ Found Bore Cannon. 03800_ Found Recoil Nullifier. 03800_ Found Arm. Leg. 03800_ Found 46 Matter. 03801_ Acquired 46 matter. 03802_ Acquired Arm. Leg. 03807_ Acquired Bore Cannon. 03811_ Slug penetrates Wall. 03812_ HV Slug penetrates Wall. 03820_ Slug penetrates Wall. 03834_ Searching scrap... 03834_ Found Remote Datajack. 03834_ Found Lrn. Tractor Beam. 03834_ Found Imp. Datajack. 03834_ Found 52 Matter. 03835_ Acquired 52 matter. 03838_ Slug penetrates Wall. 03838_ Lgt. Nuclear Core destroyed. 03842_ HV Slug penetrates Wall. 03844_ Slug penetrates Wall. Map ----- +----------------------------------------------------+ | ?????????????????????????????????????????????????? | | ?????????????????????????????????????????????????? | | ?????????????????????????????????????????????????? | | ?????????????????????????????????????????????????? | | ?????????????????????????????????????????????????? | | ???????????????????????????????????###?###????#### | | ???????????????????????????????????# ### ###### | | ???????????????????????????????????# ## | | ???????????????????????????????????# | | ???????????????????????? ??????????## | | ???????????????????????# ??????????##### | | ???????????????????????# ?###?????????## | | ??????????????????????## ## ??????????# | | ??????????????????????? ?????????## ##" | | ???????????????????????# #??????????####?## | | ???????????????????????? #####?############ | | ????????????????????????? % ### [ ! | | ????????????????????????????# | | ????????????????????????????# ###### | | ???????????????????????????## "#??# | | ?????????????????????????### ##???# | | ?????????????????????????# h ###???? | | ?????????????????????????# ## ##?????? | | ???????????????????######## ### ##?????? | | ???????????????????# ## ##?###??????? | | ???????????????????# @ ##??????????? | | ???????????????????# #####???????? | | ???????????????????# | #??????? | | ???????????????????## !/ #??????? ## | | ????????????????????## ## #### #??????? ?? | | ?????????????????????###?# #??? #???????? ??# | | ?????????????????????????# ???? #????????????? | | ?????????????????????????## ##????#?????????????? | | ??????????????????????????####???????????????????? | | ?????????????????????????????????????????????????? | | ?????????????????????????????????????????????????? | | ?????????????????????????????????????????????????? | | ?????????????????????????????????????????????????? | | ?????????????????????????????????????????????????? | | ?????????????????????????????????????????????????? | | ?????????????????????????????????????????????????? | | ?????????????????????????????????????????????????? | | ?????????????????????????????????????????????????? | | ?????????????????????????????????????????????????? | | ?????????????????????????????????????????????????? | | ?????????????????????????????????????????????????? | | ?????????????????????????????????????????????????? | | ?????????????????????????????????????????????????? | | ?????????????????????????????????????????????????? | | ?????????????????????????????????????????????????? | +----------------------------------------------------+ Best States ------------- Heat Dissipation 41 Energy Generation 14 Energy Capacity 265 Matter Stores 300 Matter Capacity 300 Sight Range 20 Robot Scan Range 15 Terrain Scan Range 16 Terrain Scan Density 210 Armor Coverage 150 Resistance: TH 20 Weapon Cycling 15 Evasion (%) 65 Target Analysis 6 Armor Integrity Analysis 30 Recoil Reduction 4 Item Schematics ----------------- Imp. Terrain Scanner | -9/Materials | Scanalyzed Minigun | -9/Materials | Scanalyzed Robot Schematics ------------------ None Fabricated ------------ Nothing Alien Tech Used ----------------- None Achievements -------------- Can't Catch Me I Spy Please Form A Line Challenges ------------ None Game ------ Seed CoreRemoteAmplifier Manual? 0 Play Time 00:47:01 Cumulative 12.4 hours Start 2024.08.19 @ 15:48:58 End 2024.08.19 @ 16:36:09 Sessions 1 Manual Loads 0 Difficulty Rogue Special Mode None Game No. 21 Rogue 21 Adventurer 0 Explorer 0 Win Type - Total 0 Types 0/0/0/0/0/0/0/0/0 Lore% 10 Gallery% 18 Achievement% 14 Wizard Run 0 Options --------- Layout 0 ASCII 0 Keyboard 1 Movement Arrows Keybinds 0 Fullscreen 1 Font 18/SmallcapsGlow Map View 76x50 Zoom Use 0% Tactical HUD 1 Map Filters NONE Filters NONE Steam 1 RUN: 3c9f45af-e78c-4f17-929d-e6259d35be18